Cogmind - Beta 16 @@@ ROGUE MODE // 2025.11.01 @ 00:19:20 Player: Bikerider58 Result: Destroyed by D-53 Grenadier with Mini Grenade Launcher Performance ------------- Evolutions (0) 0 Regions Visited (2) 400 Robots Destroyed (38) 190 Value Destroyed (672) 672 Prototype IDs (2) 40 Alien Tech Used (0) 0 Bonus (0) 0 TOTAL SCORE: 1302 Bonus ------- None Cogmind --------- Core Integrity 0/250 Matter 300/300 Energy 160/160 System Corruption 0% Temperature Cool (0) Movement Rolling (125) Ox3 Location -10/Mines Parts ------- > --- POWER (1) -------- Light Nuclear Core > --- PROPULSION (2) --- Wheel > --- UTILITY (2) ------ Heat Sink Large Storage Unit > --- WEAPON (2) ------- Spread Laser Spread Laser > --- INVENTORY (15) --- High-capacity Matter Pod (200) Seismic Detector ECM Suite Light Armor Plating Light Armor Plating Tractor Beam Spread Laser Spread Laser Improved Light Cannon Improved Light Cannon Mining Laser Hammer Peak State ------------ > --- POWER ------------ Light Nuclear Core > --- PROPULSION ------- Wheel Wheel > --- UTILITY ---------- Heat Sink Large Storage Unit > --- WEAPON ----------- Spread Laser Spread Laser > --- INVENTORY -------- Wheel High-capacity Matter Pod Seismic Detector ECM Suite Light Armor Plating Light Armor Plating Tractor Beam Spread Laser Spread Laser Improved Light Cannon Improved Light Cannon Mining Laser Hammer [Rating: 12] Favorites ----------- Power Ion Engine Engine Ion Engine Power Core Light Nuclear Core Propulsion Light Treads Treads Light Treads Wheel Wheel Utility Large Storage Unit Device Seismic Detector Storage Large Storage Unit Protection Light Armor Plating Weapon Improved Light Cannon Energy Gun Spread Laser Ballistic Gun Assault Rifle Ballistic Cannon Improved Light Cannon Build | -11 -10 -10 ------- Run | Yrd Mat Min Slots Evolved . | . . . Power . | . . . Propulsion . | . . . Utility . | . . . Weapon . | . . . Parts Attached 22 | 7 6 9 Power 4 | 1 1 2 Engine 3 | 1 1 1 Core 1 | . . 1 Reactor . | . . . Propulsion 6 | 2 1 3 Treads 2 | 2 . . Leg . | . . . Wheel 4 | . 1 3 Hover . | . . . Flight . | . . . Utility 6 | 2 2 2 Device 3 | 1 1 1 Storage 2 | 1 1 . Processor . | . . . Hackware . | . . . Protection 1 | . . 1 Artifact . | . . . Weapon 6 | 2 2 2 Energy Gun 2 | . . 2 Energy Cannon . | . . . Ballistic Gun 2 | 2 . . Ballistic Cannon 2 | . 2 . Launcher . | . . . Special Weapon . | . . . Impact Weapon . | . . . Slashing Weapon . | . . . Piercing Weapon . | . . . Special Melee Weapon . | . . . Unidentified Prototypes . | . . . Parts Lost 8 | . 1 7 Power 1 | . . 1 Propulsion 5 | . 1 4 Utility 1 | . . 1 Weapon 1 | . . 1 Highest Loss Streak 2 | . 1 2 To Critical Strikes . | . . . Average Backups 10 | 1 11 14 Power . | . 1 1 Propulsion . | . . . Utility 3 | . 2 5 Weapon 6 | 1 7 6 Tool/Special . | . . . Unused Backups 13 | . 2 11 Power . | . . . Propulsion . | . . . Utility 5 | . 1 4 Weapon 8 | . 1 7 Tool/Special . | . . . Average Slot Usage (%) 94 | . 94 95 Engine 12 | . 13 10 Treads 16 | . 20 3 Wheel 7 | . 2 21 Device 13 | . 14 10 Storage 14 | . 14 14 Energy Gun 7 | . . 27 Ballistic Cannon 20 | . 27 . Peak Build Rating 12 | 7 11 12 Average Rating 9 | 5 9 11 On Entrance 6 | . 7 11 Avg Prop Armor Cover (%) 5 | . 5 4 Naked Turns . | . . . Heaviest Build 34 | 12 34 34 Greatest Support 40 | 40 40 20 Greatest Overweight (x) 10 | . 10 3 Average Overweight (x) . | . . 1 Largest Inventory Capacity 15 | 8 15 15 Average Capacity 14 | 7 14 15 Most Carried 15 | 3 15 15 Average Carried 10 | 1 11 14 Final Capacity 15 | 8 15 15 Final Carried 15 | 2 15 12 Class Distribution -------------------- 100% | Mutant Dominant Class ---------------- Mutant | -10/Materials Mutant | -10/Mines Resources | -11 -10 -10 ----------- Run | Yrd Mat Min Matter Collected 1379 | 322 705 352 Remotely 383 | . 383 . Salvage Created 907 | 175 472 260 Parts 66 | 14 37 15 Haulers Intercepted 2 | . 2 . Recyclers Shooed 2 | . 1 1 Parts Field Recycled . | . . . Retrieved Matter . | . . . Parts Self-Destructed . | . . . Prevented . | . . . Parts Restored . | . . . Kills | -11 -10 -10 ------- Run | Yrd Mat Min Combat Hostiles Destroyed 31 | . 17 14 Guns 14 | . . 14 Cannons 17 | . 17 . Classes Destroyed 9 | 3 5 1 Worker 3 | 1 . 2 Builder 1 | . 1 . Tunneler 5 | 4 . 1 Hauler 2 | . 2 . Recycler 3 | 1 1 1 Operator 1 | . 1 . Swarmer 10 | . 6 4 Grunt 13 | . 11 2 Assembled 8 | . . 8 Best Kill Streak 3 | 3 3 3 Combat Bots Only 3 | . 3 3 Max Kills in Single Turn 2 | 1 1 2 Gunslinging 1 | . . 1 Exploded . | . . . Melee . | . . . Uniques/NPCs Destroyed . | . . . Combat | -11 -10 -10 -------- Run | Yrd Mat Min Hostile Shots Fired 138 | . 70 68 Missed 38 | . 24 14 Hits 100 | . 46 54 Melee 1 | . . 1 Projectile 99 | . 46 53 AOE 2 | . . 2 Critical Strikes 1 | . 1 . Damage Taken 1183 | . 456 727 Core 253 | . 84 169 Absorbed by Shields . | . . . Regen/Repaired (Parts) 71 | . 71 . Core Remaining (%) 100 | 100 . . Volleys Fired 109 | 13 59 37 Largest 2 | 2 2 2 Hottest 130 | 40 66 130 Shots Fired 217 | 26 118 73 Gun 96 | 26 . 70 Cannon 121 | . 118 3 Launcher . | . . . Special . | . . . Kinetic 147 | 26 118 3 Thermal 70 | . . 70 Explosive . | . . . Electromagnetic . | . . . Robot Hit Streak 12 | 8 12 8 Robot Miss Streak 12 | 2 4 12 Penetration Max . | . . . Secondary Targets 2 | . . 2 Max Gunslinging Chain 1 | . . 1 Shots Hit Robots 151 | 16 72 63 Core Hits 114 | 9 23 82 Critical Kills . | . . . Critical Parts Destroyed . | . . . Critical Strikes 3 | . 3 . Blast 3 | . 3 . Melee Attacks . | . . . Impact . | . . . Slashing . | . . . Piercing . | . . . Sneak Attacks . | . . . Combat Hostiles . | . . . Follow-up Attacks . | . . . Damage Inflicted 2528 | 172 1580 776 Guns 925 | 172 . 753 Cannons 1585 | . 1562 23 Explosions . | . . . Melee . | . . . Ramming 18 | . 18 . Kinetic 1757 | 172 1562 23 Thermal 753 | . . 753 Explosive . | . . . Electromagnetic . | . . . Impact . | . . . Slashing . | . . . Piercing . | . . . Highest Corruption . | . . . Average Corruption . | . . . Corruption Purged . | . . . Corruption Blocked . | . . . Overload Shots . | . . . Overflow Damage 4 | . 4 . Projectiles 4 | . 4 . Explosions . | . . . Melee . | . . . Knockbacks 16 | . 16 . Impact . | . . . Kinetic 16 | . 16 . Secondary . | . . . Self-Inflicted Damage . | . . . Shots . | . . . Rammed 4 | . 4 . Targets Rammed 4 | . 4 . Kicked . | . . . Crushed . | . . . Highest Temperature 372 | . 75 372 Average Temperature 75 | . 17 131 Received Heat Transfer 262 | . 150 112 Effects 1 | . . 1 Short Circuit 1 | . . 1 Siege Activations . | . . . Martial Activations . | . . . Shielding Activations . | . . . Robots Disrupted . | . . . Combat Hostiles . | . . . Robots Corrupted . | . . . Combat Hostiles . | . . . Parts Fried . | . . . Impact Corruptions . | . . . Robots Melted . | . . . Combat Hostiles . | . . . Parts Melted . | . . . Heat Transferred 930 | . . 930 Parts Sabotaged . | . . . Parts Stolen . | . . . Parts Stripped . | . . . Power Chain Reactions . | . . . Alert | -11 -10 -10 ------- Run | Yrd Mat Min Maximum Alert Level 1 | . 1 . Low Security (%) 67 | 100 52 100 Level 1 32 | . 47 . Level 2 . | . . . Level 3 . | . . . Level 4 . | . . . Level 5 . | . . . High Security . | . . . Max Security . | . . . Peak Influence 248 | 10 248 125 Initial 75 | . . 75 Average 125 | 1 164 65 Influence Increases 832 | 30 642 160 Destroy 0b10 Robot/C 460 | . 340 120 Destroy 0b10 Robot/NC 75 | 30 25 20 Destroy Leader 94 | . 74 20 Successful Hack 28 | . 28 . Select Force Hacks 30 | . 30 . Disable Machine 15 | . 15 . Destroy Structure 10 | . 10 . Lose Combat Pursuer 120 | . 120 . Influence Decreases 832 | 30 448 354 Entered New Map 119 | . . 119 Time Decay 663 | 30 438 195 Lost Part 50 | . 10 40 Squads Dispatched 4 | . 4 . Investigation 2 | . 2 . Extermination . | . . . Reinforcement 2 | . 2 . Assault . | . . . Garrison . | . . . Intercept . | . . . Searches Triggered . | . . . Construction Impeded . | . . . Haulers Reinforced . | . . . Active Scanning Responses . | . . . Cargo Convoy Interrupts . | . . . Stealth | -11 -10 -10 --------- Run | Yrd Mat Min Distress Signals 1 | . 1 . Communications Jammed . | . . . Distress Signals . | . . . Times Spotted 59 | . 37 22 Peak Tracking Total 6 | . 6 4 Tactical Retreats 11 | . 7 4 Traps | -11 -10 -10 ------- Run | Yrd Mat Min Traps Triggered 6 | . 6 . Indirectly . | . . . Trap Hack Attempts . | . . . Triggered . | . . . Disarmed . | . . . Reprogrammed . | . . . Reused . | . . . Traps Extracted . | . . . Installed . | . . . Triggered . | . . . Machines | -11 -10 -10 ---------- Run | Yrd Mat Min Machines Disabled 1 | . 1 . Max in Single Turn 1 | . 1 . Machines Repaired . | . . . Machines Dismantled . | . . . Machines Sabotaged . | . . . Overloaded Fab Kills . | . . . Hacking | -11 -10 -10 --------- Run | Yrd Mat Min Machines Accessed 7 | . 7 . Terminals 4 | . 4 . Fabricators . | . . . Repair Stations 1 | . 1 . Recycling Units 2 | . 2 . Scanalyzers . | . . . Garrison Access . | . . . Total Hacks 15 | . 15 . Successful 9 | . 9 . Failed 6 | . 6 . Catastrophic . | . . . Database Lockouts . | . . . Manual 11 | . 11 . Terminals 11 | . 11 . Fabricators . | . . . Repair Stations 1 | . 1 . Recycling Units 3 | . 3 . Scanalyzers . | . . . Garrison Access . | . . . Terminal Hacks 3 | . 3 . Robot Analysis 1 | . 1 . Prototype ID Bank 1 | . 1 . Hauler Manifests 1 | . 1 . Fabricator Hacks . | . . . Repair Station Hacks . | . . . Recycling Unit Hacks . | . . . Scanalyzer . | . . . Garrison Access Hacks . | . . . Unauthorized Hacks 6 | . 6 . Terminals 4 | . 4 . Operators 1 | . 1 . Skim 3 | . 3 . Fabricators . | . . . Repair Stations 1 | . 1 . Patch 1 | . 1 . Recycling Units 1 | . 1 . Tunnel 1 | . 1 . Scanalyzers . | . . . Garrison Access . | . . . Data Cores Recovered . | . . . Used . | . . . Hacking Detections 5 | . 5 . Full Trace Events . | . . . Feedback Events . | . . . Feedback Blocked . | . . . Robot Schematics Acquired . | . . . Robots Built . | . . . Authchips . | . . . Time . | . . . Total Robot Build Rating . | . . . Part Schematics Acquired . | . . . Parts Built . | . . . Authchips . | . . . Time . | . . . Total Part Build Rating . | . . . Part Studies Acquired . | . . . Parts Repaired . | . . . Time . | . . . Parts Recycled . | . . . Recycled Matter . | . . . Retrieved Matter . | . . . Retrieved Components . | . . . Parts Scanalyzed . | . . . Part Schematics Acquired . | . . . Parts Damaged . | . . . Bothacking | -11 -10 -10 ------------ Run | Yrd Mat Min Used RIF Installer . | . . . Robots Hacked . | . . . Non-combat . | . . . Combat . | . . . Robot Hacks Applied . | . . . Relay Couplers Released . | . . . Fabnet Peak Effective % . | . . . Robots Rewired . | . . . Allies Hacked . | . . . Hacks Repelled . | . . . Allies | -11 -10 -10 -------- Run | Yrd Mat Min Total Allies . | . . . Largest Group . | . . . Highest-Rated Group . | . . . Highest-Rated Ally . | . . . Total Orders . | . . . Ally Attacks . | . . . Total Damage . | . . . Kills . | . . . Allies Corrupted . | . . . Allies Melted . | . . . Intel | -11 -10 -10 ------- Run | Yrd Mat Min Active Infowar (turns) 976 | 8 900 68 Seismic 976 | 8 900 68 Robot Analysis Total 1 | . 1 . Derelict Logs Recovered 1 | . . 1 Drone Launches . | . . . Drone Recoveries . | . . . Exploration | -11 -10 -10 ------------- Run | Yrd Mat Min Turns Passed 1995 | 200 1338 457 Spaces Moved 899 | 96 555 248 Core 5 | 4 1 . Treads 649 | 92 528 29 Legs . | . . . Wheels 245 | . 26 219 Hover . | . . . Flight . | . . . Fastest Speed 50 | 50 125 95 Average Speed 168 | 155 193 118 Slowest Speed 550 | 160 550 240 Overloaded Moves . | . . . Propulsion Burnouts . | . . . Robots Hopped . | . . . Potential Cave-ins . | . . . Cave-ins Triggered . | . . . Exploration Rate (%) 47 | 8 91 43 Regions Visited 2 Branch Regions 1 Pre-discovered Areas 1 | . 1 . Known Exits Taken . | . . . Unknown Exits Taken 2 | 1 1 . Scrap Searched . | . . . Spaces Dug . | . . . Terrain Destroyed 6 | . 6 . Melee . | . . . Projectile 6 | . 6 . AOE . | . . . Terrain Rammed . | . . . Walls Destroyed . | . . . Machines Disabled . | . . . Actions | -11 -10 -10 --------- Run | Yrd Mat Min Total 1146 | 121 689 336 Wait 60 | 2 27 31 Move 897 | 95 554 248 Hop . | . . . Pick Up 22 | 4 15 3 Fast Attach 25 | 5 17 3 Attach 6 | 2 . 4 Detach 3 | . 2 1 Swap 12 | . 6 6 Drop 8 | . 5 3 Fire 109 | 13 59 37 Melee . | . . . Ram . | . . . Kick . | . . . Crush 4 | . 4 . Escape Stasis . | . . . Rewire . | . . . Trap . | . . . Miscellaneous . | . . . Route ------- -11/Scrapyard -10/Materials (discovered 4 exits: *Mat x2 / [*Min x2]) -10/Mines (discovered 1 exit: Mat) History --------- Turn | Location | Event 3 | -11/Scrapyard | Discovered new exit (range 16) 201 | -11/Scrapyard | Entered Materials 315 | -10/Materials | Build established: Mutant 370 | -10/Materials | Discovered new exit (range 8) 810 | -10/Materials | Discovered new exit (range 16) 1001 | -10/Materials | Discovered new exit (range 8) 1440 | -10/Materials | Discovered new exit (range 7) 1539 | -10/Materials | Entered Mines 1542 | -10/Mines | Met a Derelict bent on vengeance 1601 | -10/Mines | Identified exit to Materials 1649 | -10/Mines | Core integrity fell below 50% 1791 | -10/Mines | Assembled infested the area 1851 | -10/Mines | Core integrity fell below 20% 1996 | -10/Mines | Destroyed by D-53 Grenadier with Mini Grenade Launcher Last Messages --------------- 01917_ Acquired 11 matter. 01933_ as-84787 destroyed. 01940_ as-66867 destroyed. 01940_ Switching to secondary target: as-21824. 01940_ as-21824 destroyed. 01944_ Acquired 14 matter. 01945_ Acquired 7 matter. 01950_ Wheel destroyed. 01952_ as-81260 sneak attacks. 01952_ R-06 Scavenger system corrupted by crushing effect. 01952_ R-06 Scavenger destroyed. 01957_ U-05 Engineer destroyed. 01963_ Wheel destroyed. 01967_ The unstable cave ceiling collapses. 01967_ as-72356 destroyed. 01971_ Acquired 29 matter. 01976_ Acquired Wheel. 01978_ Acquired 20 matter. 01995_ Wheel destroyed. Map ----- +----------------------------------------------------+ | ????????????????????????????????????????????? | | ????????????????????????????????????????????? | | ????????????????????????????????????????????? | | ????????????????????????????????????????????? | | ????????????????????????????????????????????? | | ????????????????????????????????????????????? | | ????????????????????????????????????????????? | | ????????????????????????????????????????????? | | ????????????????????????????????????????????? | | ????????????????????????????????????????????? | | ????????????????????????????????????????????? | | ????????????????????????????????????????????? | | ????????????????????????????????????????????? | | ????????????????????????????????????????????? | | ???????????????????? ??? #??????????????????? | | ???????????????????? ?"" #??????????????????? | | ???????????????????? """ #?? ??????????????? | | ???????????????????? """ #?? ??????????????? | | ???????????????????? #?? #?????????????? | | ????????????????????# #?# #?????????????? | | ????????????????????# ??# #?????????????? | | ????????????????????# ???# #?????????????? | | ????????????????????# ##??# #????????????## | | ?????????????????#### #### #??#????????# | | ?????????????????# # ## ###?##### | | ????????????????## @ ? ? | | ????????????????# t? ?? | | ????????????????## ####????# ??? | | ?????????????????# ##???# #??? | | ?????????????????#### d #???# #??? | | ?????????????????????# d ##??# #??? | | ?????????????????????# #### ##?? | | ?????????????????????## ###u %## #?? | | ??????????????????????# ##?## =* #?? | | ?????????####?????????# ##??# = = ##? | | ????????## #####?????## #??## * #? | | ?????#### #??????## #???## #? | | ????## ## #######?# k##????# ## ## | | ????# ### #?# a##?????## ### | | ????# ##?####### #?# #???????####?# ## | | ????## ##????????#%#?# #????????????# #? | | ????## ########### ### #????????????# ? | | ???## ## %! #????????????##### | | ???# ## !* #????????????????? | | ???# ## ##### ########????????????????? | | ??## ## #?###|###?????????????????????? | | ??# ## #?# #?????????????????????? | | ??# ### #?## % ##?????????????????????? | | ??# #?# ### ##????????????????????? | | ??# ### ## ????????????????????? | +----------------------------------------------------+ Best States ------------- Heat Dissipation 35 Energy Generation 14 Energy Capacity 250 Matter Stores 300 Matter Capacity 300 Sight Range 16 Terrain Scan Density 10 Armor Coverage 150 Evasion (%) 41 Recoil Reduction 2 Item Schematics ----------------- None Robot Schematics ------------------ None Fabricated ------------ Nothing Repaired ---------- Nothing Studied --------- None Alien Tech Used ----------------- None Achievements -------------- None Challenges ------------ None Game ------ Seed ReflectiveImpulseStorage Manual? 0 Play Time 00:16:22 Cumulative 174.4 hours Start 2025.10.31 @ 23:52:53 End 2025.11.01 @ 00:19:20 Sessions 3 Manual Loads 0 Difficulty Rogue Special Mode None Game No. 83 Rogue 78 Adventurer 5 Explorer 0 Win Type - Total 4 Types 3/0/0/1/0/0/0/0/0/0 Lore% 60 Gallery% 64 Achievement% 42 Wizard Run 0 Options --------- Layout 1 ASCII 0 Keyboard 0 Movement Numpad Keybinds 0 Fullscreen 1 Font 24/Smallcaps Map View 50x35 Zoom Use 0% Tactical HUD 1 Map Filters NONE Filters NONE Steam 1 RUN: f4cb356f-b332-4675-a835-fd758ee1a55b